Cogmind - Beta 12 X4 @@@ ROGUE MODE // 2022.09.23 @ 16:32:03 Player: btmk16 Result: Destroyed by G-34 Mercenary with Small Laser Performance ------------- Evolutions (0) 0 Regions Visited (1) 200 Robots Destroyed (20) 100 Value Destroyed (435) 435 Prototype IDs (0) 0 Alien Tech Used (0) 0 Bonus (0) 0 TOTAL SCORE: 735 Bonus ------- None Cogmind --------- Core Integrity 0/250 Matter 300/300 Energy 100/100 System Corruption 0% Temperature Cool (6) Movement Core (350) Ox6 Location -10/Materials Parts ------- > --- POWER (1) -------- (None) > --- PROPULSION (2) --- (None) > --- UTILITY (2) ------ Large Storage Unit > --- WEAPON (2) ------- (None) > --- INVENTORY (15) --- Light Ion Engine Light Treads Aluminum Leg Aluminum Leg Wheel Wheel Small Storage Unit Peak State ------------ > --- POWER ------------ Light Ion Engine > --- PROPULSION ------- Light Treads Light Treads > --- UTILITY ---------- Small Storage Unit Seismic Detector > --- WEAPON ----------- EM Pulse Gun Assault Rifle > --- INVENTORY -------- Light Ion Engine Aluminum Leg Aluminum Leg Wheel Wheel EM Pulse Gun [Rating: 7] Favorites ----------- Power Light Ion Engine Engine Light Ion Engine Propulsion Light Treads Treads Light Treads Utility Large Storage Unit Device Seismic Detector Storage Large Storage Unit Weapon EM Pulse Gun Energy Gun EM Pulse Gun Ballistic Gun Assault Rifle Build | -11 -10 ------- Run | Scr Mat Slots Evolved . | . . Power . | . . Propulsion . | . . Utility . | . . Weapon . | . . Parts Attached 11 | 7 4 Power 1 | 1 . Engine 1 | 1 . Core . | . . Reactor . | . . Propulsion 2 | 2 . Treads 2 | 2 . Leg . | . . Wheel . | . . Hover . | . . Flight . | . . Utility 3 | 2 1 Device 1 | 1 . Storage 2 | 1 1 Processor . | . . Hackware . | . . Protection . | . . Artifact . | . . Weapon 5 | 2 3 Energy Gun 3 | 1 2 Energy Cannon . | . . Ballistic Gun 2 | 1 1 Ballistic Cannon . | . . Launcher . | . . Special Weapon . | . . Impact Weapon . | . . Slashing Weapon . | . . Piercing Weapon . | . . Special Melee Weapon . | . . Unidentified Prototypes . | . . Parts Lost 8 | . 8 Power 1 | . 1 Propulsion 2 | . 2 Utility 1 | . 1 Weapon 4 | . 4 Highest Loss Streak 5 | . 5 To Critical Strikes . | . . Average Slot Usage (%) 87 | . 87 Engine 13 | . 13 Treads 25 | . 25 Device 11 | . 11 Storage 14 | . 14 Energy Gun 16 | . 16 Ballistic Gun 5 | . 5 Naked Turns . | . . Heaviest Build 28 | 13 28 Greatest Support 40 | 40 40 Greatest Overweight (x) 6 | . 6 Average Overweight (x) . | . . Largest Inventory Capacity 15 | 8 15 Average Capacity 13 | 7 14 Most Carried 9 | 6 9 Average Carried 7 | 4 7 Final Capacity 15 | 8 15 Final Carried 7 | 6 7 Class Distribution -------------------- 100% | Mutant Dominant Class ---------------- Mutant | -10/Materials Resources | -11 -10 ----------- Run | Scr Mat Matter Collected 428 | 235 193 Remotely . | . . Salvage Created 736 | 145 591 Parts 39 | 7 32 Haulers Intercepted . | . . Recyclers Shooed 1 | . 1 Parts Field Recycled . | . . Retrieved Matter . | . . Parts Self-Destructed . | . . Prevented . | . . Kills | -11 -10 ------- Run | Scr Mat Combat Hostiles Destroyed 13 | . 13 Guns 11 | . 11 AOE 1 | . 1 Classes Destroyed 6 | 2 4 Builder 2 | . 2 Tunneler 2 | 2 . Recycler 2 | 1 1 Operator 1 | . 1 Swarmer 3 | . 3 Grunt 10 | . 10 Best Kill Streak 8 | 3 8 Combat Bots Only 7 | . 7 Max Kills in Single Turn 2 | 1 2 Gunslinging . | . . Exploded 1 | . 1 Melee . | . . Uniques/NPCs Destroyed . | . . Combat | -11 -10 -------- Run | Scr Mat Damage Taken 972 | . 972 Core 256 | . 256 Absorbed by Shields . | . . Core Remaining (%) 100 | 100 . Volleys Fired 68 | 6 62 Largest 2 | 2 2 Hottest 80 | 60 80 Shots Fired 98 | 12 86 Gun 98 | 12 86 Cannon . | . . Launcher . | . . Special . | . . Kinetic 50 | 6 44 Thermal . | . . Explosive . | . . Electromagnetic 48 | 6 42 Robot Hit Streak 9 | 8 9 Robot Miss Streak 2 | 1 2 Penetration Max . | . . Secondary Targets 2 | . 2 Max Gunslinging Chain 1 | . 1 Shots Hit Robots 72 | 9 63 Core Hits 27 | 4 23 Critical Kills . | . . Critical Parts Destroyed 1 | 1 . Critical Strikes 2 | 1 1 Destroy 1 | 1 . Corrupt 1 | . 1 Melee Attacks . | . . Impact . | . . Slashing . | . . Piercing . | . . Sneak Attacks . | . . Combat Hostiles . | . . Follow-up Attacks . | . . Damage Inflicted 1230 | 130 1100 Guns 1043 | 130 913 Cannons . | . . Explosions 183 | . 183 Melee . | . . Ramming 4 | . 4 Kinetic 467 | 62 405 Thermal 183 | . 183 Explosive . | . . Electromagnetic 576 | 68 508 Impact . | . . Slashing . | . . Piercing . | . . Highest Corruption . | . . Average Corruption . | . . Corruption Purged . | . . Corruption Blocked . | . . Overload Shots . | . . Overflow Damage 1 | . 1 Projectiles . | . . Explosions 1 | . 1 Melee . | . . Knockbacks . | . . Impact . | . . Kinetic . | . . Secondary . | . . Self-Inflicted Damage 14 | . 14 Shots 1 | . 1 Rammed 3 | . 3 Targets Rammed 3 | . 3 Kicked . | . . Crushed . | . . Highest Temperature 96 | . 96 Average Temperature 35 | . 35 Received Heat Transfer 303 | . 303 Siege Activations . | . . Robots Corrupted 1 | . 1 Combat Hostiles 1 | . 1 Parts Fried 2 | . 2 Impact Corruptions . | . . Robots Melted . | . . Combat Hostiles . | . . Parts Melted . | . . Heat Transferred 250 | . 250 Parts Sabotaged . | . . Parts Stolen . | . . Parts Stripped . | . . Power Chain Reactions 3 | . 3 Missiles Intercepted . | . . Alert | -11 -10 ------- Run | Scr Mat Peak Influence 348 | 15 348 Initial 9 | . 9 Average 115 | 4 141 Maximum Alert Level 1 | . 1 Low Security (%) 72 | 100 66 Level 1 27 | . 33 Level 2 . | . . Level 3 . | . . Level 4 . | . . Level 5 . | . . High Security . | . . Max Security . | . . Squads Dispatched 3 | . 3 Investigation 2 | . 2 Extermination . | . . Reinforcement 1 | . 1 Assault . | . . Garrison . | . . Intercept . | . . Searches Triggered . | . . Construction Impeded . | . . Haulers Reinforced . | . . Active Scanning Responses . | . . Cargo Convoy Interrupts . | . . Stealth | -11 -10 --------- Run | Scr Mat Distress Signals 1 | . 1 Communications Jammed . | . . Distress Signals . | . . Times Spotted 19 | . 19 Peak Tracking Total 8 | . 8 Tactical Retreats 1 | . 1 Traps | -11 -10 ------- Run | Scr Mat Traps Triggered 1 | . 1 Indirectly . | . . Trap Hack Attempts . | . . Triggered . | . . Disarmed . | . . Reprogrammed . | . . Reused . | . . Traps Extracted . | . . Installed . | . . Triggered . | . . Machines | -11 -10 ---------- Run | Scr Mat Machines Disabled . | . . Max in Single Turn . | . . Machines Sabotaged . | . . Overloaded Fab Kills . | . . Hacking | -11 -10 --------- Run | Scr Mat Machines Accessed 2 | . 2 Terminals 2 | . 2 Fabricators . | . . Repair Stations . | . . Recycling Units . | . . Scanalyzers . | . . Garrison Access . | . . Total Hacks 7 | . 7 Successful 3 | . 3 Failed 4 | . 4 Catastrophic . | . . Database Lockouts . | . . Manual 7 | . 7 Terminals 7 | . 7 Fabricators . | . . Repair Stations . | . . Recycling Units . | . . Scanalyzers . | . . Garrison Access . | . . Terminal Hacks 2 | . 2 Robot Analysis 2 | . 2 Fabricator Hacks . | . . Repair Station Hacks . | . . Recycling Unit Hacks . | . . Scanalyzer . | . . Garrison Access Hacks . | . . Unauthorized Hacks 1 | . 1 Terminals 1 | . 1 Botnet 1 | . 1 Fabricators . | . . Repair Stations . | . . Recycling Units . | . . Scanalyzers . | . . Garrison Access . | . . Data Cores Recovered 1 | . 1 Used 1 | . 1 Hacking Detections 2 | . 2 Full Trace Events 1 | . 1 Feedback Events . | . . Feedback Blocked . | . . Robot Schematics Acquired . | . . Robots Built . | . . Authchips . | . . Time . | . . Total Robot Build Rating . | . . Part Schematics Acquired . | . . Parts Built . | . . Authchips . | . . Time . | . . Total Part Build Rating . | . . Parts Repaired . | . . Time . | . . Parts Recycled . | . . Recycled Matter . | . . Retrieved Matter . | . . Retrieved Components . | . . Parts Scanalyzed . | . . Part Schematics Acquired . | . . Parts Damaged . | . . Bothacking | -11 -10 ------------ Run | Scr Mat Used RIF Installer . | . . Robots Hacked . | . . Non-combat . | . . Combat . | . . Robot Hacks Applied . | . . Relay Couplers Released . | . . Fabnet Peak Effective % . | . . Robots Rewired . | . . Allies Hacked . | . . Hacks Repelled . | . . Allies | -11 -10 -------- Run | Scr Mat Total Allies . | . . Largest Group . | . . Highest-Rated Group . | . . Highest-Rated Ally . | . . Total Orders . | . . Ally Attacks . | . . Total Damage . | . . Kills . | . . Allies Corrupted . | . . Allies Melted . | . . Intel | -11 -10 ------- Run | Scr Mat Robot Analysis Total 2 | . 2 Derelict Logs Recovered . | . . Drone Launches . | . . Drone Recoveries . | . . Exploration | -11 -10 ------------- Run | Scr Mat Turns Passed 482 | 91 391 Spaces Moved 158 | 39 119 Core 8 | 4 4 Treads 150 | 35 115 Legs . | . . Wheels . | . . Hover . | . . Flight . | . . Fastest Speed 50 | 50 160 Average Speed 166 | 148 171 Slowest Speed 350 | 160 350 Overloaded Moves . | . . Propulsion Burnouts . | . . Robots Hopped . | . . Cave-ins Triggered . | . . Exploration Rate (%) 12 | 3 22 Regions Visited 1 Branch Regions . Pre-discovered Areas . | . . Known Exits Taken . | . . Unknown Exits Taken 1 | 1 . Scrap Searched . | . . Spaces Dug . | . . Terrain Destroyed 11 | . 11 Melee . | . . Projectile . | . . AOE 11 | . 11 Terrain Rammed . | . . Walls Destroyed . | . . Machines Disabled . | . . Actions | -11 -10 --------- Run | Scr Mat Total 272 | 57 215 Wait 25 | . 25 Move 157 | 38 119 Hop . | . . Pick Up 7 | 6 1 Fast Attach 8 | 7 1 Attach 2 | . 2 Detach 1 | . 1 Swap 1 | . 1 Drop . | . . Fire 68 | 6 62 Melee . | . . Ram . | . . Kick . | . . Crush 3 | . 3 Escape Stasis . | . . Rewire . | . . Trap . | . . Miscellaneous . | . . Route ------- -11/Scrapyard -10/Materials (discovered 1 exit: [*Min]) History --------- Turn | Location | Event 6 | -11/Scrapyard | Discovered new exit (range 16) 92 | -11/Scrapyard | Entered Materials 317 | -10/Materials | Build established: Mutant 412 | -10/Materials | Core integrity fell below 50% 417 | -10/Materials | Destroyed 7 combat bots 465 | -10/Materials | Discovered new exit (range 13) 468 | -10/Materials | Core integrity fell below 20% 483 | -10/Materials | Destroyed by G-34 Mercenary with Small Laser Last Messages --------------- 00418_ S-10 Pest destroyed. 00418_ K-01 Serf collects debris. 00419_ Acquired 11 matter. 00419_ K-01 Serf collects debris. 00419_ R-06 Scavenger collects Lgt. Assault Rifle. 00421_ Acquired 1 matter. 00422_ K-01 Serf collects debris. 00424_ S-10 Pest destroyed. 00425_ Acquired 8 matter. 00426_ R-06 Scavenger collects Aluminum Leg. 00427_ Acquired 3 matter. 00433_ Lgt. Treads destroyed. 00437_ Assault Rifle destroyed. 00438_ Slammed into K-01 Serf. 00441_ Slammed into U-05 Engineer. 00443_ K-01 Serf collects debris. 00453_ Slammed into A-02 Transporter. 00463_ Lgt. Ion Engine destroyed. 00465_ EXIT=FOUND 00469_ Lgt. Treads destroyed. Map ----- +----------------------------------------------------+ | | | ??????????????????????????????? | | ??????????????????????????????? | | ??????????????????????????????? | | ??????????????????????????????? | | ??????????????????????????????? | | ??????????????????????????????? | | #####?????????????????????????? | | ?????????????????????????? | | """ #??????????????????????? | | """ #??????????????????????? | | = """ #??????????????????????? | | #????????????|||???????? | | "" """ #?????????#"" "?#????? | | "T """ #?????????# #????? | | "" """ #?????????# < #????? | | #?????????? ?????? | | #+######?????????? ?????? | | #????????????? ??????? | | #?????????????# #??????? | | #?????????????# ######?? | | ## #?????????????# ## ||#?? | | ?# #???????????#?# ## ||#?? | | ?# % ##????????? ### ## !!#?? | | ## %###?????###+## r !!#?? | | % ######### @[[#?? | | %%% %%%%% %g T [[#?? | | ######% #####?? | | ########??# ## #?????? | | ??"" # ???# ########?????? | | "R" # ???# + ??????????? | | " " # ???+ # """????????? | | ? ??# #?""?????????? | | ? ??# #??"?????????? | | #####?##??# #????????????? | | ??????????# #????????????? | | ??????????# #????????????? | | ??????????# #????????????? | | ?????????? #????????????? | | ??????????###### #????????????? | | ???????????????? #????????????? | | ???????????????? ?????????????? | | ??????????????????????????????? | | ??????????????????????????????? | | ??????????????????????????????? | | ??????????????????????????????? | | ??????????????????????????????? | | ??????????????????????????????? | | ??????????????????????????????? | | ??????????????????????????????? | +----------------------------------------------------+ Best States ------------- Heat Dissipation 25 Energy Generation 10 Energy Capacity 125 Matter Stores 300 Matter Capacity 300 Sight Range 16 Terrain Scan Density 10 Evasion (%) 40 Recoil Reduction 2 Item Schematics ----------------- None Robot Schematics ------------------ None Fabricated ------------ Nothing Alien Tech Used ----------------- None Achievements -------------- None Challenges ------------ None Game ------ Seed FortressIntegrityRedirector Manual? 0 Play Time 00:06:06 Cumulative 528.2 hours Start 2022.09.23 @ 16:27:33 End 2022.09.23 @ 16:32:03 Sessions 1 Manual Loads 0 Difficulty Rogue Special Mode None Game No. 592 Rogue 591 Adventurer 0 Explorer 1 Win Type - Total 21 Types 15/0/3/3/0/0/0/0/0 Lore% 81 Gallery% 91 Achievement% 74 Wizard Run 0 Options --------- ASCII 0 Keyboard 1 Movement Vi Keybinds 0 Fullscreen 1 Font 18/SmallcapsGlow Map View 76x50 Tactical HUD 1 Map Filters NONE Filters NONE Steam 1 RUN: 0959673d-4632-474f-b0f9-3279f7fdfd07